[Event "Late-Titled-Tuesday-Blitz-April-02-2024"]
[Site "Chess.com"]
[Date "2024.04.02"]
[Round "7"]
[White "anasta10"]
[Black "WCM-Mexicana"]
[Result "0-1"]
[WhiteElo "2566"]
[BlackElo "2459"]
[TimeControl "180+1"]
[EndTime "15:17:04 PDT"]
[Termination "WCM-Mexicana won by checkmate"]

1. Nf3 {[%clk 0:03:00.9]} 1... d5 {[%clk 0:02:59.9]} 2. d4 {[%clk 0:03:00.4]}
2... Nf6 {[%clk 0:02:59.8]} 3. c4 {[%clk 0:03:00.7]} 3... c5 {[%clk 0:03:00.3]}
4. cxd5 {[%clk 0:03:00.3]} 4... cxd4 {[%clk 0:03:00.8]} 5. Qxd4 {[%clk
0:02:59.9]} 5... Qxd5 {[%clk 0:03:01.1]} 6. Nc3 {[%clk 0:02:59.1]} 6... Qxd4
{[%clk 0:03:00.2]} 7. Nxd4 {[%clk 0:03:00]} 7... e5 {[%clk 0:02:59.7]} 8. Nf3
{[%clk 0:02:59.9]} 8... Nfd7 {[%clk 0:02:51.6]} 9. Bd2 {[%clk 0:02:29.3]} 9...
Bb4 {[%clk 0:02:43.8]} 10. Nb5 {[%clk 0:02:20.8]} 10... Bxd2+ {[%clk 0:02:40.8]}
11. Kxd2 {[%clk 0:02:04.3]} 11... Na6 {[%clk 0:02:41.7]} 12. Rc1 {[%clk
0:01:47.6]} 12... f6 {[%clk 0:02:31.3]} 13. e3 {[%clk 0:01:42]} 13... Ke7 {[%clk
0:02:28.8]} 14. Nc3 {[%clk 0:01:16.5]} 14... Rd8 {[%clk 0:02:21.3]} 15. Bxa6
{[%clk 0:01:13.8]} 15... Nc5+ {[%clk 0:02:21.5]} 16. Ke2 {[%clk 0:01:10.9]}
16... Nxa6 {[%clk 0:02:21.3]} 17. a3 {[%clk 0:00:57.8]} 17... Bg4 {[%clk
0:02:20.9]} 18. b4 {[%clk 0:00:56.3]} 18... Rac8 {[%clk 0:02:19.8]} 19. Nb5
{[%clk 0:00:54.1]} 19... e4 {[%clk 0:02:16.4]} 20. Rxc8 {[%clk 0:00:46.5]} 20...
exf3+ {[%clk 0:01:57.4]} 21. gxf3 {[%clk 0:00:46.3]} 21... Bxc8 {[%clk 0:01:58]}
22. Rc1 {[%clk 0:00:34.3]} 22... Bd7 {[%clk 0:01:51.4]} 23. Nd4 {[%clk
0:00:32.8]} 23... Rc8 {[%clk 0:01:47.3]} 24. Rg1 {[%clk 0:00:32.5]} 24... g6
{[%clk 0:01:43.5]} 25. h4 {[%clk 0:00:32.1]} 25... Rc3 {[%clk 0:01:41.8]} 26. h5
{[%clk 0:00:31.9]} 26... Kf7 {[%clk 0:01:40.2]} 27. hxg6+ {[%clk 0:00:29.9]}
27... hxg6 {[%clk 0:01:41.1]} 28. Rh1 {[%clk 0:00:28.2]} 28... Kg7 {[%clk
0:01:38.9]} 29. Ra1 {[%clk 0:00:27.1]} 29... Nc7 {[%clk 0:01:36.9]} 30. Kd2
{[%clk 0:00:27.1]} 30... Rc4 {[%clk 0:01:29.9]} 31. Kd3 {[%clk 0:00:24.5]} 31...
b5 {[%clk 0:01:24.6]} 32. a4 {[%clk 0:00:19.8]} 32... a6 {[%clk 0:00:58.2]} 33.
axb5 {[%clk 0:00:20.2]} 33... axb5 {[%clk 0:00:59.1]} 34. Ra7 {[%clk 0:00:20.2]}
34... Kf8 {[%clk 0:00:57.9]} 35. Rb7 {[%clk 0:00:15.2]} 35... Ke7 {[%clk
0:00:55.5]} 36. Ra7 {[%clk 0:00:12]} 36... Kd8 {[%clk 0:00:50.2]} 37. Nc2 {[%clk
0:00:07.9]} 37... Nd5 {[%clk 0:00:46.6]} 38. Ra8+ {[%clk 0:00:07.6]} 38... Kc7
{[%clk 0:00:44.9]} 39. Ra6 {[%clk 0:00:05.4]} 39... Nxb4+ {[%clk 0:00:39.7]} 40.
Nxb4 {[%clk 0:00:05.1]} 40... Rxb4 {[%clk 0:00:40.2]} 41. Rxf6 {[%clk
0:00:05.8]} 41... Ra4 {[%clk 0:00:37.9]} 42. e4 {[%clk 0:00:04.8]} 42... Ra3+
{[%clk 0:00:32.6]} 43. Kc2 {[%clk 0:00:04.4]} 43... b4 {[%clk 0:00:32.1]} 44.
Kb2 {[%clk 0:00:03.1]} 44... Rd3 {[%clk 0:00:30.3]} 45. f4 {[%clk 0:00:03.3]}
45... Rf3 {[%clk 0:00:29.9]} 46. e5 {[%clk 0:00:03.4]} 46... Kd8 {[%clk
0:00:28.3]} 47. Rxg6 {[%clk 0:00:02.9]} 47... Rxf2+ {[%clk 0:00:26.7]} 48. Kb3
{[%clk 0:00:03.1]} 48... Rxf4 {[%clk 0:00:27.6]} 49. Rd6 {[%clk 0:00:02.1]}
49... Ke7 {[%clk 0:00:27.2]} 50. Rb6 {[%clk 0:00:02.7]} 50... Be6+ {[%clk
0:00:26.1]} 51. Kb2 {[%clk 0:00:02.8]} 51... b3 {[%clk 0:00:25.9]} 52. Rb7+
{[%clk 0:00:02.4]} 52... Kf8 {[%clk 0:00:26.4]} 53. Rb6 {[%clk 0:00:02.9]} 53...
Kf7 {[%clk 0:00:26.8]} 54. Ra6 {[%clk 0:00:02.1]} 54... Re4 {[%clk 0:00:26.3]}
55. Ra5 {[%clk 0:00:02.1]} 55... Kg6 {[%clk 0:00:26.6]} 56. Ra6 {[%clk 0:00:02]}
56... Kf5 {[%clk 0:00:27.1]} 57. Rb6 {[%clk 0:00:02.1]} 57... Rxe5 {[%clk
0:00:27.4]} 58. Rb4 {[%clk 0:00:02.1]} 58... Re2+ {[%clk 0:00:27.7]} 59. Kc3
{[%clk 0:00:01.9]} 59... Rc2+ {[%clk 0:00:27.9]} 60. Kd3 {[%clk 0:00:02.1]}
60... Rc5 {[%clk 0:00:26.4]} 61. Rb6 {[%clk 0:00:01.8]} 61... Ke5 {[%clk
0:00:26.5]} 62. Rb8 {[%clk 0:00:01.7]} 62... Bf5+ {[%clk 0:00:24.2]} 63. Kd2
{[%clk 0:00:02]} 63... Rc2+ {[%clk 0:00:24.2]} 64. Kd1 {[%clk 0:00:02.6]} 64...
Be6 {[%clk 0:00:22.4]} 65. Rb5+ {[%clk 0:00:02.7]} 65... Kd4 {[%clk 0:00:21.4]}
66. Rh5 {[%clk 0:00:01.2]} 66... Bd5 {[%clk 0:00:21.3]} 67. Rh4+ {[%clk
0:00:01.8]} 67... Be4 {[%clk 0:00:21.8]} 68. Rh8 {[%clk 0:00:01.8]} 68... Bd5
{[%clk 0:00:21.3]} 69. Rd8 {[%clk 0:00:02.7]} 69... Rh2 {[%clk 0:00:19.5]} 70.
Rb8 {[%clk 0:00:03.1]} 70... Kc3 {[%clk 0:00:19.4]} 71. Rc8+ {[%clk 0:00:03]}
71... Bc4 {[%clk 0:00:20]} 72. Rb8 {[%clk 0:00:03.2]} 72... Rh1# {[%clk
0:00:20.4]} 0-1

[Event "Late-Titled-Tuesday-Blitz-April-02-2024"]
[Site "Chess.com"]
[Date "2024.04.02"]
[Round "7"]
[White "ninguno46"]
[Black "GaiozNigalidze"]
[Result "0-1"]
[WhiteElo "2591"]
[BlackElo "2727"]
[TimeControl "180+1"]
[EndTime "15:17:12 PDT"]
[Termination "GaiozNigalidze won on time"]

1. e4 {[%clk 0:02:58.5]} 1... e5 {[%clk 0:03:00]} 2. Nf3 {[%clk 0:02:57.7]} 2...
Nc6 {[%clk 0:03:00.5]} 3. d4 {[%clk 0:02:58]} 3... exd4 {[%clk 0:02:59]} 4. Bc4
{[%clk 0:02:58.4]} 4... Bc5 {[%clk 0:02:50.1]} 5. c3 {[%clk 0:02:48.6]} 5... d3
{[%clk 0:02:47.8]} 6. Qxd3 {[%clk 0:02:46.2]} 6... d6 {[%clk 0:02:44.5]} 7. b4
{[%clk 0:02:38.2]} 7... Bb6 {[%clk 0:02:43.8]} 8. Nbd2 {[%clk 0:02:33.5]} 8...
Nf6 {[%clk 0:02:39.8]} 9. O-O {[%clk 0:02:30.8]} 9... O-O {[%clk 0:02:38.8]} 10.
a4 {[%clk 0:02:30.1]} 10... a5 {[%clk 0:02:37.8]} 11. b5 {[%clk 0:02:29.7]}
11... Ne7 {[%clk 0:02:35.8]} 12. Ba3 {[%clk 0:02:23.6]} 12... Nd7 {[%clk
0:02:27.4]} 13. Ba2 {[%clk 0:01:47.2]} 13... Ng6 {[%clk 0:02:24.1]} 14. Nc4
{[%clk 0:01:45.4]} 14... Bc5 {[%clk 0:02:24.3]} 15. Bb2 {[%clk 0:01:42.5]} 15...
Qf6 {[%clk 0:01:56.4]} 16. Nd4 {[%clk 0:01:13.7]} 16... Nf4 {[%clk 0:01:40]} 17.
Qf3 {[%clk 0:01:11.2]} 17... Ne5 {[%clk 0:01:40.2]} 18. Nxe5 {[%clk 0:01:10.2]}
18... dxe5 {[%clk 0:01:40.3]} 19. Nf5 {[%clk 0:00:39.8]} 19... g6 {[%clk
0:01:12.5]} 20. c4 {[%clk 0:00:14.2]} 20... gxf5 {[%clk 0:00:39.8]} 21. Qxf4
{[%clk 0:00:13.9]} 21... exf4 {[%clk 0:00:40.7]} 22. Bxf6 {[%clk 0:00:13]} 22...
fxe4 {[%clk 0:00:41.1]} 23. Rae1 {[%clk 0:00:12.1]} 23... Bf5 {[%clk 0:00:21.5]}
24. Rd1 {[%clk 0:00:09.7]} 24... c6 {[%clk 0:00:11.8]} 25. Bb1 {[%clk
0:00:07.8]} 25... Rfe8 {[%clk 0:00:09.1]} 26. Kh1 {[%clk 0:00:05.5]} 26... Re6
{[%clk 0:00:05.6]} 27. Bb2 {[%clk 0:00:05.1]} 27... Rae8 {[%clk 0:00:04.5]} 28.
Rde1 {[%clk 0:00:05.1]} 28... Bg6 {[%clk 0:00:04.5]} 29. Re2 {[%clk 0:00:04.2]}
29... e3 {[%clk 0:00:04.7]} 30. f3 {[%clk 0:00:04.2]} 30... Bxb1 {[%clk
0:00:04.2]} 31. Rxb1 {[%clk 0:00:05.1]} 31... Rd6 {[%clk 0:00:04.7]} 32. g3
{[%clk 0:00:04]} 32... Rd5 {[%clk 0:00:04.8]} 33. Rbe1 {[%clk 0:00:04.3]} 33...
Rd3 {[%clk 0:00:04.2]} 34. gxf4 {[%clk 0:00:03.8]} 34... f5 {[%clk 0:00:02.9]}
35. Rg2+ {[%clk 0:00:04.2]} 35... Kf7 {[%clk 0:00:02.9]} 36. Rg7+ {[%clk
0:00:04.3]} 36... Ke6 {[%clk 0:00:03.4]} 37. Rxh7 {[%clk 0:00:04.3]} 37... Bd4
{[%clk 0:00:02.9]} 38. Bxd4 {[%clk 0:00:03.5]} 38... Kd6 {[%clk 0:00:03]} 39.
Rxe3 {[%clk 0:00:04.4]} 39... Rd1+ {[%clk 0:00:02]} 40. Kg2 {[%clk 0:00:04.1]}
40... Rg8+ {[%clk 0:00:01.7]} 41. Kh3 {[%clk 0:00:04.7]} 41... Rxd4 {[%clk
0:00:02]} 42. Re5 {[%clk 0:00:04.6]} 42... Rxf4 {[%clk 0:00:01.3]} 43. Ree7
{[%clk 0:00:04.9]} 43... Kc5 {[%clk 0:00:01.8]} 44. Rh6 {[%clk 0:00:04.1]} 44...
Rxf3+ {[%clk 0:00:02]} 45. Kh4 {[%clk 0:00:05]} 45... Rf4+ {[%clk 0:00:02.3]}
46. Kh5 {[%clk 0:00:05.3]} 46... Rf3 {[%clk 0:00:02.6]} 47. h4 {[%clk
0:00:05.7]} 47... Rf4 {[%clk 0:00:02.1]} 48. Rf6 {[%clk 0:00:06.2]} 48... Rxc4
{[%clk 0:00:02.1]} 49. Rh6 {[%clk 0:00:07.1]} 49... Kb4 {[%clk 0:00:02.7]} 50.
bxc6 {[%clk 0:00:06.9]} 50... bxc6 {[%clk 0:00:02.6]} 51. Rb7+ {[%clk
0:00:07.8]} 51... Kxa4 {[%clk 0:00:03.1]} 52. Rf7 {[%clk 0:00:06.4]} 52... f4
{[%clk 0:00:03]} 53. Rf5 {[%clk 0:00:05.4]} 53... f3 {[%clk 0:00:03.3]} 54. Rhf6
{[%clk 0:00:05.2]} 54... f2 {[%clk 0:00:03.5]} 55. Rxf2 {[%clk 0:00:05]} 55...
Rc5+ {[%clk 0:00:04]} 56. R2f5 {[%clk 0:00:05.1]} 56... Kb5 {[%clk 0:00:04.3]}
57. Rxc5+ {[%clk 0:00:05.1]} 57... Kxc5 {[%clk 0:00:05.2]} 58. Rg6 {[%clk
0:00:05.5]} 58... Rh8+ {[%clk 0:00:04.5]} 59. Kg5 {[%clk 0:00:06.4]} 59... Rc8
{[%clk 0:00:04.9]} 60. h5 {[%clk 0:00:07.3]} 60... a4 {[%clk 0:00:04.8]} 61. h6
{[%clk 0:00:08.2]} 61... a3 {[%clk 0:00:05]} 62. Rg7 {[%clk 0:00:09.1]} 62...
Rh8 {[%clk 0:00:04.7]} 63. h7 {[%clk 0:00:10]} 63... a2 {[%clk 0:00:04.9]} 64.
Rg8 {[%clk 0:00:10.9]} 64... Rxh7 {[%clk 0:00:05.1]} 65. Rh8 {[%clk 0:00:11.8]}
65... Rxh8 {[%clk 0:00:05.2]} 0-1

[Event "Late-Titled-Tuesday-Blitz-April-02-2024"]
[Site "Chess.com"]
[Date "2024.04.02"]
[Round "7"]
[White "Squirlolz"]
[Black "emeli_chess"]
[Result "1/2-1/2"]
[WhiteElo "2572"]
[BlackElo "2429"]
[TimeControl "180+1"]
[EndTime "15:17:16 PDT"]
[Termination "Game drawn by repetition"]

1. e4 {[%clk 0:03:00.9]} 1... e5 {[%clk 0:02:59.1]} 2. Nf3 {[%clk 0:02:57.6]}
2... Nc6 {[%clk 0:02:59.4]} 3. Bc4 {[%clk 0:02:56.8]} 3... Nf6 {[%clk
0:02:59.1]} 4. d3 {[%clk 0:02:56.8]} 4... Be7 {[%clk 0:02:58.6]} 5. O-O {[%clk
0:02:56.8]} 5... O-O {[%clk 0:02:58]} 6. a4 {[%clk 0:02:57.6]} 6... a5 {[%clk
0:02:57.2]} 7. Nc3 {[%clk 0:02:56.3]} 7... d6 {[%clk 0:02:55.9]} 8. h3 {[%clk
0:02:55.1]} 8... Be6 {[%clk 0:02:55]} 9. Nd5 {[%clk 0:02:54.9]} 9... Bxd5 {[%clk
0:02:55]} 10. exd5 {[%clk 0:02:54.2]} 10... Nd4 {[%clk 0:02:55]} 11. c3 {[%clk
0:02:31.1]} 11... Nxf3+ {[%clk 0:02:50.5]} 12. Qxf3 {[%clk 0:02:32]} 12... Nd7
{[%clk 0:02:47.8]} 13. Be3 {[%clk 0:02:29]} 13... Bg5 {[%clk 0:02:43.2]} 14. d4
{[%clk 0:02:27.5]} 14... Bxe3 {[%clk 0:02:41.6]} 15. fxe3 {[%clk 0:02:23]} 15...
f5 {[%clk 0:02:33.6]} 16. Qg3 {[%clk 0:02:14.8]} 16... e4 {[%clk 0:02:23.1]} 17.
Rf2 {[%clk 0:02:05.4]} 17... g6 {[%clk 0:01:44.5]} 18. Bb3 {[%clk 0:02:00.8]}
18... Kh8 {[%clk 0:01:33.9]} 19. c4 {[%clk 0:02:00.4]} 19... b6 {[%clk
0:01:32.8]} 20. Rc1 {[%clk 0:01:58.8]} 20... Rb8 {[%clk 0:01:28.8]} 21. Bd1
{[%clk 0:01:54.1]} 21... Nf6 {[%clk 0:01:27.1]} 22. Qh4 {[%clk 0:01:51.9]} 22...
Ng8 {[%clk 0:01:16]} 23. Qg3 {[%clk 0:01:49.8]} 23... Qf6 {[%clk 0:01:08.5]} 24.
Qh2 {[%clk 0:01:38.5]} 24... Qh4 {[%clk 0:01:02.2]} 25. g3 {[%clk 0:01:38]}
25... Qh6 {[%clk 0:01:02]} 26. Rc3 {[%clk 0:01:38.2]} 26... Nf6 {[%clk
0:00:57.9]} 27. g4 {[%clk 0:01:36.3]} 27... fxg4 {[%clk 0:00:55.8]} 28. Bxg4
{[%clk 0:01:36]} 28... Nxg4 {[%clk 0:00:53.9]} 29. hxg4 {[%clk 0:01:36.9]} 29...
Qxh2+ {[%clk 0:00:52.4]} 30. Rxh2 {[%clk 0:01:36.6]} 30... Rf3 {[%clk
0:00:47.1]} 31. Rf2 {[%clk 0:01:36.6]} 31... Rbf8 {[%clk 0:00:46.1]} 32. Rxf3
{[%clk 0:01:37.1]} 32... Rxf3 {[%clk 0:00:45.7]} 33. Kg2 {[%clk 0:01:38]} 33...
h5 {[%clk 0:00:40.5]} 34. gxh5 {[%clk 0:01:38]} 34... gxh5 {[%clk 0:00:40.6]}
35. c5 {[%clk 0:01:38.7]} 35... bxc5 {[%clk 0:00:39.4]} 36. dxc5 {[%clk
0:01:39.6]} 36... dxc5 {[%clk 0:00:39.7]} 37. Rxc5 {[%clk 0:01:40.5]} 37... Rxe3
{[%clk 0:00:39.7]} 38. Rxc7 {[%clk 0:01:37.2]} 38... Rd3 {[%clk 0:00:37.8]} 39.
Rc5 {[%clk 0:01:20.7]} 39... h4 {[%clk 0:00:29.4]} 40. Rxa5 {[%clk 0:01:19.6]}
40... Rd2+ {[%clk 0:00:29.7]} 41. Kh3 {[%clk 0:01:18.9]} 41... e3 {[%clk
0:00:24.4]} 42. Ra8+ {[%clk 0:01:04]} 42... Kg7 {[%clk 0:00:23.7]} 43. Re8
{[%clk 0:01:04.9]} 43... Rxb2 {[%clk 0:00:22.6]} 44. Rxe3 {[%clk 0:01:04]} 44...
Rd2 {[%clk 0:00:22.7]} 45. Re5 {[%clk 0:00:47.9]} 45... Kf6 {[%clk 0:00:22]} 46.
Re6+ {[%clk 0:00:47.1]} 46... Kf7 {[%clk 0:00:21.3]} 47. Kxh4 {[%clk 0:00:37.3]}
47... Rxd5 {[%clk 0:00:18.4]} 48. Re4 {[%clk 0:00:37]} 48... Kf6 {[%clk
0:00:14.7]} 49. Kg4 {[%clk 0:00:33.8]} 49... Re5 {[%clk 0:00:13.6]} 50. Rd4
{[%clk 0:00:21.9]} 50... Ke6 {[%clk 0:00:13.6]} 51. Kf4 {[%clk 0:00:19.3]} 51...
Rd5 {[%clk 0:00:13.8]} 52. Rb4 {[%clk 0:00:17.4]} 52... Kd6 {[%clk 0:00:13.5]}
53. Ke4 {[%clk 0:00:18]} 53... Rd1 {[%clk 0:00:11.9]} 54. Rc4 {[%clk 0:00:13.3]}
54... Ra1 {[%clk 0:00:10.5]} 55. Kd4 {[%clk 0:00:11.4]} 55... Ra3 {[%clk
0:00:09.7]} 56. Ke4 {[%clk 0:00:09.6]} 56... Ke6 {[%clk 0:00:07.2]} 57. Kd4
{[%clk 0:00:02.9]} 57... Kd6 {[%clk 0:00:07.4]} 58. Ke4 {[%clk 0:00:03.2]} 58...
Ke6 {[%clk 0:00:07.7]} 59. Rb4 {[%clk 0:00:03.8]} 59... Kd6 {[%clk 0:00:07.6]}
60. Kd4 {[%clk 0:00:03.9]} 60... Kc6 {[%clk 0:00:07.9]} 61. Kc4 {[%clk
0:00:04.5]} 61... Ra1 {[%clk 0:00:07.6]} 62. Kc3 {[%clk 0:00:03.3]} 62... Kc5
{[%clk 0:00:07.2]} 63. Rb5+ {[%clk 0:00:03.3]} 63... Kc6 {[%clk 0:00:07.2]} 64.
Kb4 {[%clk 0:00:04.2]} 64... Rb1+ {[%clk 0:00:06.7]} 65. Ka5 {[%clk 0:00:04.8]}
65... Rxb5+ {[%clk 0:00:06.2]} 66. axb5+ {[%clk 0:00:05.7]} 66... Kb7 {[%clk
0:00:06.5]} 67. Kb4 {[%clk 0:00:06.4]} 67... Kb6 {[%clk 0:00:06.7]} 68. Kc4
{[%clk 0:00:07.1]} 68... Kb7 {[%clk 0:00:07]} 69. Kc5 {[%clk 0:00:08]} 69... Kc7
{[%clk 0:00:07.4]} 70. Kb4 {[%clk 0:00:08.9]} 70... Kb6 {[%clk 0:00:07.5]} 71.
Ka4 {[%clk 0:00:09]} 71... Kb7 {[%clk 0:00:07.6]} 72. Ka5 {[%clk 0:00:09.9]}
72... Ka7 {[%clk 0:00:07.9]} 73. Kb4 {[%clk 0:00:10.8]} 73... Kb6 {[%clk
0:00:08.1]} 1/2-1/2

[Event "Late-Titled-Tuesday-Blitz-April-02-2024"]
[Site "Chess.com"]
[Date "2024.04.02"]
[Round "7"]
[White "Kirill_Klukin"]
[Black "VD_coach"]
[Result "1/2-1/2"]
[WhiteElo "2784"]
[BlackElo "2588"]
[TimeControl "180+1"]
[EndTime "15:17:19 PDT"]
[Termination "Game drawn by repetition"]

1. d4 {[%clk 0:03:00.9]} 1... Nf6 {[%clk 0:02:58.6]} 2. Nf3 {[%clk 0:03:01.6]}
2... g6 {[%clk 0:02:58.5]} 3. e3 {[%clk 0:03:02.1]} 3... Bg7 {[%clk 0:02:58.8]}
4. Be2 {[%clk 0:03:02.9]} 4... O-O {[%clk 0:02:58.7]} 5. O-O {[%clk 0:03:03.8]}
5... d6 {[%clk 0:02:59]} 6. c4 {[%clk 0:03:04.1]} 6... Nbd7 {[%clk 0:02:58.9]}
7. Nc3 {[%clk 0:03:04.8]} 7... e5 {[%clk 0:02:55.4]} 8. Qc2 {[%clk 0:03:05.3]}
8... Re8 {[%clk 0:02:53.9]} 9. b4 {[%clk 0:03:05.7]} 9... exd4 {[%clk
0:02:52.5]} 10. Nxd4 {[%clk 0:03:04.8]} 10... Nf8 {[%clk 0:02:52]} 11. Bb2
{[%clk 0:03:04.2]} 11... Ne6 {[%clk 0:02:47.9]} 12. Nf3 {[%clk 0:03:00.1]} 12...
h6 {[%clk 0:02:27.8]} 13. Rfd1 {[%clk 0:02:58.9]} 13... a5 {[%clk 0:02:28]} 14.
a3 {[%clk 0:02:58.8]} 14... axb4 {[%clk 0:02:28.4]} 15. axb4 {[%clk 0:02:59.7]}
15... Rxa1 {[%clk 0:02:28.6]} 16. Bxa1 {[%clk 0:03:00.6]} 16... Ng5 {[%clk
0:02:27.8]} 17. Nxg5 {[%clk 0:02:52.8]} 17... hxg5 {[%clk 0:02:28.7]} 18. h3
{[%clk 0:02:32.5]} 18... g4 {[%clk 0:02:19.5]} 19. hxg4 {[%clk 0:02:29.1]} 19...
Bxg4 {[%clk 0:02:17.7]} 20. c5 {[%clk 0:02:15.9]} 20... Bxe2 {[%clk 0:02:12.9]}
21. Qxe2 {[%clk 0:02:09.2]} 21... d5 {[%clk 0:02:12.9]} 22. Qb5 {[%clk
0:02:04.1]} 22... c6 {[%clk 0:01:38.3]} 23. Qxb7 {[%clk 0:01:55.8]} 23... Ng4
{[%clk 0:01:38]} 24. Qxc6 {[%clk 0:01:23.9]} 24... Rxe3 {[%clk 0:01:06.7]} 25.
Qxd5 {[%clk 0:00:28.1]} 25... Qxd5 {[%clk 0:00:17.9]} 26. Nxd5 {[%clk
0:00:26.6]} 26... Re2 {[%clk 0:00:16.3]} 27. Bxg7 {[%clk 0:00:26.1]} 27... Kxg7
{[%clk 0:00:14.5]} 28. Rc1 {[%clk 0:00:20.2]} 28... Nxf2 {[%clk 0:00:06.3]} 29.
Nf4 {[%clk 0:00:17.5]} 29... Rb2 {[%clk 0:00:04.2]} 30. c6 {[%clk 0:00:17.4]}
30... Ne4 {[%clk 0:00:01.8]} 31. c7 {[%clk 0:00:14.9]} 31... Nd6 {[%clk
0:00:02.2]} 32. c8=Q {[%clk 0:00:11.2]} 32... Nxc8 {[%clk 0:00:02.3]} 33. Rxc8
{[%clk 0:00:09.6]} 33... Rb1+ {[%clk 0:00:02.8]} 34. Kh2 {[%clk 0:00:09.5]}
34... Rxb4 {[%clk 0:00:03.7]} 35. Nh3 {[%clk 0:00:10.1]} 35... Rb3 {[%clk
0:00:03.7]} 36. Rc7 {[%clk 0:00:10.7]} 36... Rb4 {[%clk 0:00:03.9]} 37. Ng5
{[%clk 0:00:10.6]} 37... Kf6 {[%clk 0:00:04.4]} 38. Nxf7 {[%clk 0:00:10.8]}
38... Rh4+ {[%clk 0:00:03.9]} 39. Kg3 {[%clk 0:00:11.1]} 39... Rh7 {[%clk
0:00:04.8]} 40. Kg4 {[%clk 0:00:03.8]} 40... Rxf7 {[%clk 0:00:04.6]} 41. Rc6+
{[%clk 0:00:04.4]} 41... Kg7 {[%clk 0:00:05]} 42. Kg5 {[%clk 0:00:05]} 42...
Rf5+ {[%clk 0:00:05.1]} 43. Kh4 {[%clk 0:00:05.7]} 43... Rf6 {[%clk 0:00:06]}
44. Rc7+ {[%clk 0:00:06]} 44... Rf7 {[%clk 0:00:06.7]} 45. Rc4 {[%clk
0:00:06.5]} 45... Rf5 {[%clk 0:00:07.1]} 46. Kg4 {[%clk 0:00:06.9]} 46... Rf7
{[%clk 0:00:08]} 47. g3 {[%clk 0:00:07.1]} 47... Rf6 {[%clk 0:00:08.5]} 48. Rc5
{[%clk 0:00:07]} 48... Rf7 {[%clk 0:00:09.4]} 49. Kg5 {[%clk 0:00:07.5]} 49...
Re7 {[%clk 0:00:08.5]} 50. g4 {[%clk 0:00:07.5]} 50... Rd7 {[%clk 0:00:08.5]}
51. Rb5 {[%clk 0:00:06.6]} 51... Re7 {[%clk 0:00:08.7]} 52. Rd5 {[%clk
0:00:07.2]} 52... Rc7 {[%clk 0:00:08.7]} 53. Re5 {[%clk 0:00:07.8]} 53... Rb7
{[%clk 0:00:08.9]} 54. Rc5 {[%clk 0:00:08.3]} 54... Ra7 {[%clk 0:00:09.2]} 55.
Kf4 {[%clk 0:00:08.7]} 55... Ra4+ {[%clk 0:00:09.2]} 56. Kg5 {[%clk 0:00:09.1]}
56... Ra7 {[%clk 0:00:09.3]} 57. Rb5 {[%clk 0:00:09.4]} 57... Rc7 {[%clk
0:00:09.4]} 58. Kh4 {[%clk 0:00:09.9]} 58... Rd7 {[%clk 0:00:09.6]} 59. Kg3
{[%clk 0:00:10.3]} 59... Re7 {[%clk 0:00:10]} 60. Kf4 {[%clk 0:00:10.7]} 60...
Rf7+ {[%clk 0:00:10.3]} 61. Kg5 {[%clk 0:00:11.1]} 61... Rd7 {[%clk 0:00:10.9]}
62. Rb6 {[%clk 0:00:11.4]} 62... Rd5+ {[%clk 0:00:10.6]} 63. Kf4 {[%clk
0:00:12.2]} 63... Rc5 {[%clk 0:00:09.8]} 64. Kg3 {[%clk 0:00:12.6]} 64... Ra5
{[%clk 0:00:10]} 65. Rd6 {[%clk 0:00:13.3]} 65... Kh6 {[%clk 0:00:09.6]} 66. Kf4
{[%clk 0:00:12.6]} 66... Ra4+ {[%clk 0:00:09.5]} 67. Kg3 {[%clk 0:00:12.4]}
67... Ra5 {[%clk 0:00:10]} 68. Rb6 {[%clk 0:00:12.1]} 68... Kg5 {[%clk
0:00:09.6]} 69. Rb3 {[%clk 0:00:12.8]} 69... Rd5 {[%clk 0:00:09.8]} 70. Rc3
{[%clk 0:00:13]} 70... Re5 {[%clk 0:00:10.2]} 71. Rd3 {[%clk 0:00:13.3]} 71...
Rc5 {[%clk 0:00:10.3]} 72. Re3 {[%clk 0:00:13.5]} 72... Rb5 {[%clk 0:00:10.3]}
73. Rd3 {[%clk 0:00:14.1]} 73... Ra5 {[%clk 0:00:10.6]} 74. Rc3 {[%clk
0:00:14.4]} 74... Rd5 {[%clk 0:00:10.6]} 75. Rb3 {[%clk 0:00:13.9]} 75... Re5
{[%clk 0:00:11]} 76. Rc3 {[%clk 0:00:14.4]} 76... Rd5 {[%clk 0:00:11.2]} 77. Kf3
{[%clk 0:00:14.2]} 77... Re5 {[%clk 0:00:10.9]} 78. Kg3 {[%clk 0:00:14.4]} 78...
Rd5 {[%clk 0:00:11.2]} 1/2-1/2